bitfinex/quotes_SOLUSD_20260309
["timestamp","ask_amount","ask_price","bid_price","bid_amount"]
[1773046144700,0.45220251,83.708,83.681,11.95014399]
[1773046144907,0.2,83.71,83.691,0.36078137]
[1773046145280,0.45220251,83.708,83.67,4.38885217]
[1773046145479,0.45220251,83.708,83.671,0.36078137]
[1773046145685,0.2,83.71,83.691,0.36078137]
[1773046146801,0.2,83.71,83.692,11.94857334]
[1773046147007,0.2,83.71,83.693,0.36078137]
[1773046147306,0.65220251,83.71,83.687,11.94927539]
[1773046147504,0.45220251,83.709,83.662,0.36078137]
[1773046147698,0.45220251,83.699,83.66,4.38885217]
[1773046148009,0.45220251,83.699,83.661,0.36078137]
[1773046148195,0.45220251,83.699,83.671,0.36078137]
[1773046148997,0.45220251,83.699,83.672,12.31221076]
[1773046149188,0.45220251,83.699,83.673,0.36078137]
[1773046149916,1e-08,83.71,83.691,0.36078137]
[1773046150099,0.2,83.72,83.701,0.36078137]
[1773046150304,0.2,83.72,83.71,4.38885217]
[1773046150503,0.2,83.73,83.711,0.36078137]
[1773046150692,0.2,83.73,83.72,4.38885217]
[1773046150891,4.58885217,83.76,83.722,0.36078137]
[1773046150892,0.45220251,83.752,83.722,0.36078137]
[1773046151091,12.39222005,83.752,83.722,0.36078137]
[1773046151293,0.45220251,83.739,83.721,11.94443449]
[1773046151512,0.45220251,83.739,83.71,4.38885217]
[1773046151712,0.45220251,83.739,83.72,11.7410918]
[1773046151902,0.45220251,83.738,83.711,11.94586135]
[1773046152412,0.45220251,83.738,83.705,11.94661337]
[1773046153114,11.94215221,83.737,83.705,11.94661337]
[1773046153414,0.45220251,83.747,83.72,11.7410918]
[1773046153614,11.9410918,83.76,83.705,11.94661337]
[1773046153615,0.45220251,83.759,83.731,0.36078137]
[1773046155594,0.45220251,83.759,83.732,11.94286533]
[1773046156203,0.45220251,83.749,83.71,11.7410918]
[1773046157790,0.45220251,83.747,83.711,11.94586135]
[1773046157990,0.45220251,83.739,83.711,11.94586135]
[1773046158909,11.93983675,83.754,83.712,0.36078137]
[1773046159209,0.45220251,83.752,83.721,0.36078137]
[1773046159418,0.45220251,83.752,83.73,11.7410918]
[1773046159613,0.45220251,83.752,83.721,0.36078137]
[1773046160320,0.45220251,83.75,83.722,11.94429182]
[1773046160518,0.45220251,83.749,83.702,0.36078137]
[1773046160720,0.45220251,83.739,83.7,11.7410918]
[1773046161110,0.45220251,83.739,83.701,0.36078137]
[1773046161413,0.45220251,83.729,83.7,11.7410918]
[1773046162130,0.45220251,83.729,83.691,11.94870946]
[1773046162305,101.49132546,83.751,83.677,29.87658593]
[1773046162306,0.45220251,83.717,83.686,11.94937714]
[1773046162508,0.45220251,83.709,83.676,11.95084867]
[1773046164646,11.94628948,83.708,83.676,11.95084867]
[1773046164924,0.45220251,83.707,83.676,11.95084867]
[1773046165515,0.45220251,83.707,83.679,11.95030827]
[1773046166708,0.45220251,83.705,83.679,11.95030827]
[1773046167104,0.45220251,83.705,83.683,11.94985839]
[1773046168018,0.45220251,83.705,83.675,12.31176132]
[1773046168226,0.45220251,83.705,83.679,11.95032617]
[1773046168420,0.45220251,83.699,83.682,22.67594847]
[1773046168725,11.94800229,83.696,83.682,21.87594847]
[1773046169426,0.23921863,83.689,83.642,0.49046997]
[1773046169631,11.7410918,83.68,83.643,0.49046997]
[1773046169810,11.7410918,83.68,83.651,0.49046997]
[1773046170017,11.98031043,83.67,83.643,0.49046997]
[1773046170325,11.7410918,83.66,83.633,0.49046997]
[1773046170626,11.7410918,83.67,83.633,0.49046997]
[1773046170815,11.95185791,83.669,83.635,0.49046997]
[1773046173329,11.95185791,83.669,83.636,11.95657372]
[1773046173520,4.3919425,83.66,83.637,0.46820095]
[1773046173719,11.76482551,83.66,83.637,0.46820095]
[1773046174208,0.23921863,83.668,83.637,0.46820095]
[1773046174731,11.76482551,83.66,83.637,0.46820095]
[1773046175730,11.95328655,83.659,83.637,0.46820095]
[1773046176728,11.95328655,83.659,83.631,0.46820095]
[1773046176930,11.76482551,83.65,83.624,22.42585416]
[1773046177120,11.76482551,83.65,83.624,34.38410817]
[1773046177326,11.76482551,83.63,83.601,0.46820095]
[1773046177633,0.23921863,83.635,83.601,0.46820095]
[1773046177634,11.76482551,83.62,83.602,0.46820095]
[1773046177837,11.76482551,83.62,83.6,0.2]
[1773046180120,11.95900453,83.619,83.6,0.2]
[1773046180411,11.95839876,83.624,83.601,0.46820095]
[1773046180616,11.76482551,83.62,83.601,0.46820095]
[1773046180839,11.95697989,83.634,83.601,0.46820095]
[1773046181012,11.95697989,83.634,83.611,0.46820095]
[1773046181213,11.76482551,83.65,83.611,0.46820095]
[1773046181614,11.76482551,83.64,83.611,0.46820095]
[1773046182335,11.95614486,83.639,83.611,0.46820095]
[1773046184025,0.23921863,83.636,83.603,0.46820095]
[1773046184227,11.76482551,83.63,83.603,0.46820095]
[1773046184531,0.23921863,83.636,83.603,0.46820095]
[1773046184739,0.23921863,83.636,83.561,0.46820095]
[1773046185041,11.76482551,83.61,83.571,0.46820095]
[1773046185345,11.76482551,83.6,83.571,0.46820095]
[1773046186251,11.96186557,83.599,83.573,0.46820095]
[1773046187440,11.9611828,83.604,83.573,0.46820095]
[1773046187646,11.77916267,83.61,83.573,0.46820095]
[1773046187941,23.73802418,83.62,83.581,0.48270994]
[1773046188650,11.77916267,83.61,83.583,0.48270994]
[1773046189951,11.77916267,83.6,83.583,0.48270994]
[1773046190828,11.96186557,83.599,83.583,0.48270994]
[1773046191229,11.96186557,83.599,83.572,12.44843634]
[1773046191423,11.96186557,83.599,83.573,0.48270994]
[1773046191644,11.77916267,83.61,83.581,0.48270994]
[1773046191925,11.95857549,83.622,83.581,0.48270994]
[1773046192126,11.95600191,83.64,83.611,0.48270994]
[1773046192339,11.77916267,83.65,83.611,0.48270994]
[1773046192541,11.95471553,83.649,83.612,11.96000574]
[1773046192852,11.95471553,83.649,83.613,0.48270994]
[1773046193928,11.77916267,83.64,83.613,0.48270994]
[1773046194352,0.23921863,83.639,83.582,0.48270994]
[1773046194550,0.23921863,83.639,83.536,53.78]
[1773046194551,11.77916267,83.61,83.585,0.48270994]
[1773046194929,59.77357768,83.649,83.591,0.48270994]
[1773046194930,23.73661959,83.63,83.591,0.48270994]
[1773046196125,11.77916267,83.63,83.601,0.48270994]
[1773046196332,11.77916267,83.62,83.601,0.48270994]
[1773046196743,0.23921863,83.635,83.601,0.48270994]
[1773046196744,11.95867985,83.622,83.601,0.48270994]
[1773046197128,11.77916267,83.62,83.601,0.48270994]
[1773046199134,11.77916267,83.62,83.594,11.96247148]
[1773046199135,0.23921863,83.618,83.562,4.82477569]
[1773046199344,11.77916267,83.61,83.581,0.48270994]
[1773046199544,0.23921863,83.618,83.581,0.48270994]
[1773046201055,11.95929057,83.617,83.583,0.48270994]
[1773046203354,11.95929057,83.617,83.584,11.96401225]
[1773046203657,11.95929057,83.617,83.585,0.48395399]
[1773046204574,0.23921863,83.616,83.585,0.48395399]
[1773046205161,11.95929057,83.617,83.587,0.48395399]
[1773046206047,11.95757452,83.629,83.591,0.48395399]
[1773046206364,11.95757452,83.629,83.601,0.48395399]
[1773046206559,11.95614486,83.639,83.611,0.48395399]
[1773046207765,41.84650701,83.639,83.611,0.48395399]
[1773046209052,0.23921863,83.638,83.611,0.48395399]
[1773046210169,0.48646346,83.629,83.6,11.77916267]
[1773046211248,0.48646346,83.629,83.59,11.77916267]
[1773046211845,41.85201128,83.628,83.59,11.77916267]
[1773046212049,42.33847474,83.628,83.591,0.48395399]
[1773046212356,0.48646346,83.627,83.591,0.48395399]
[1773046213172,0.48646346,83.627,83.592,0.48395399]
[1773046213385,11.95771751,83.628,83.611,0.48395399]
[1773046213862,11.95800349,83.626,83.603,0.48395399]
[1773046214172,0.48646346,83.625,83.596,0.48395399]
[1773046215061,41.85301221,83.626,83.596,0.48395399]
[1773046216270,0.48646346,83.619,83.589,0.48395399]
[1773046216670,11.77916267,83.6,83.582,0.48395399]
[1773046216866,0.48646346,83.609,83.582,0.48395399]
[1773046218170,59.78787262,83.629,83.56,11.87916267]
[1773046218171,0.48646346,83.597,83.56,11.87916267]
[1773046218876,41.86703031,83.598,83.56,11.87916267]
[1773046218877,0.48646346,83.589,83.56,0.1]
[1773046220189,0.48646346,83.589,83.56,0.58395399]
[1773046221775,0.48646346,83.587,83.56,0.58395399]
[1773046222178,11.95900453,83.619,83.581,0.48395399]
[1773046222361,0.48646346,83.618,83.581,0.48395399]
[1773046223766,11.95929057,83.617,83.581,0.48395399]
[1773046223966,11.95929057,83.617,83.574,12.44935125]
[1773046223967,0.48646346,83.609,83.574,12.44935125]
[1773046224972,0.48646346,83.609,83.575,0.48395399]
[1773046225185,0.48646346,83.589,83.56,0.1]
[1773046225478,101.65396987,83.617,83.56,0.1]
[1773046225479,11.77916267,83.58,83.56,0.1]
[1773046225686,0.48646346,83.589,83.562,0.48395399]
[1773046225886,11.77916267,83.59,83.56,0.1]
[1773046225887,11.96200866,83.598,83.564,0.48395399]
[1773046226085,0.48646346,83.597,83.564,0.48395399]
[1773046226880,0.48646346,83.589,83.564,0.48395399]
[1773046227262,0.48646346,83.589,83.56,0.1]
[1773046227964,0.48646346,83.587,83.56,0.1]
[1773046228478,11.77916267,83.58,83.56,0.1]
[1773046228665,0.48646346,83.579,83.56,0.1]
[1773046230259,12.45119948,83.579,83.56,0.1]
[1773046231354,0.48646346,83.586,83.56,0.58395399]
[1773046231976,11.9632966,83.589,83.561,0.48395399]
[1773046233682,0.47865281,83.589,83.561,0.48395399]
[1773046234690,0.47865281,83.589,83.56,0.1]
[1773046236403,0.47865281,83.587,83.56,0.1]
[1773046237576,0.47865283,83.587,83.536,0.49098906]
[1773046237778,4.39987081,83.56,83.536,0.49098906]
[1773046237978,4.39987081,83.57,83.536,0.49098906]
[1773046238469,11.9661597,83.569,83.538,0.49098906]
[1773046239078,11.9661597,83.569,83.541,0.49098906]
[1773046239890,0.47865281,83.599,83.561,0.49098906]
[1773046240092,0.95730564,83.588,83.561,0.49098906]
[1773046240390,0.47865281,83.62,83.58,4.39987081]
[1773046240588,0.47865281,83.618,83.58,4.39987081]
[1773046240888,0.47865281,83.618,83.581,11.96444167]
[1773046241094,0.47865281,83.618,83.582,0.49098906]
[1773046242272,0.47865281,83.616,83.582,0.49098906]
[1773046243081,0.47865281,83.609,83.582,0.49098906]
[1773046244295,0.47865281,83.607,83.582,12.45527575]
[1773046244696,0.47865281,83.607,83.582,0.49098906]
[1773046245993,0.47865281,83.607,83.566,0.48301238]
[1773046246299,0.4564072,83.597,83.567,11.96644608]
[1773046246493,0.4564072,83.597,83.571,0.48301238]
[1773046248184,0.4564072,83.597,83.567,11.96644608]
[1773046248583,0.4564072,83.597,83.548,3.69383402]
[1773046248584,0.4564072,83.589,83.55,11.77710243]
[1773046248795,0.4564072,83.579,83.551,0.48301238]
[1773046251900,0.4564072,83.577,83.541,0.48301238]
[1773046252207,0.4564072,83.569,83.541,12.45318271]
[1773046252785,0.4564072,83.569,83.542,0.48301238]
[1773046253387,11.96487113,83.578,83.551,0.48301238]
[1773046253886,11.96411341,83.584,83.553,0.48301238]
[1773046254086,0.4564072,83.583,83.553,0.48301238]
[1773046255107,0.4564072,83.579,83.553,0.48301238]
[1773046256403,11.96487113,83.578,83.553,0.48301238]
[1773046256704,0.4564072,83.577,83.553,0.48301238]
[1773046258505,0.4564072,83.575,83.541,12.45318271]
[1773046258692,0.4564072,83.575,83.542,0.48301238]
[1773046260215,23.75221207,83.58,83.542,0.48301238]
[1773046260507,0.4564072,83.604,83.571,0.48301238]
[1773046260811,11.96043488,83.609,83.581,0.48301238]
[1773046260986,12.41684208,83.609,83.581,0.48301238]
[1773046261405,0.4564072,83.608,83.571,0.48301238]
[1773046261997,0.4564072,83.608,83.581,0.48301238]
[1773046263512,0.50820689,83.606,83.581,0.48301238]
[1773046264518,0.50820689,83.606,83.581,12.4473447]
[1773046264719,0.50820689,83.606,83.582,0.49744507]
[1773046264917,11.96010507,83.612,83.582,0.49744507]
[1773046265317,0.50820689,83.628,83.591,0.49744507]
[1773046266714,11.95786049,83.627,83.592,11.96286726]
[1773046266906,0.50820689,83.626,83.593,0.49744507]
[1773046267106,0.50820689,83.626,83.601,0.49744507]
[1773046268717,0.50820689,83.626,83.602,12.45888139]
[1773046269219,0.50820689,83.637,83.603,0.49744507]
[1773046269400,0.50820689,83.637,83.611,0.49744507]
[1773046269606,0.50820689,83.629,83.597,11.96215175]
[1773046269906,0.50820689,83.629,83.596,0.49744507]
[1773046270108,0.50820689,83.619,83.581,11.96444167]
[1773046270323,0.50820689,83.609,83.581,11.96444167]
[1773046270722,0.50820689,83.607,83.574,0.49744507]
[1773046271019,0.50820689,83.599,83.574,0.49744507]
[1773046271617,0.50820689,83.589,83.561,0.49744507]
[1773046271818,0.50820689,83.594,83.561,0.49744507]
[1773046273630,11.96132989,83.603,83.571,0.49744507]
[1773046274330,0.50820689,83.599,83.571,0.49744507]
[1773046275920,0.50820689,83.599,83.572,12.46317521]
[1773046276109,0.50820689,83.597,83.572,12.46317521]
[1773046276311,0.50820689,83.597,83.572,11.96573014]
[1773046276715,0.50820689,83.589,83.564,0.49744507]
[1773046277121,0.50820689,83.589,83.538,3.69383402]
[1773046277122,0.50820689,83.623,83.581,0.49744507]
[1773046277327,0.50820689,83.638,83.601,0.49744507]
[1773046278030,0.50820689,83.636,83.593,0.49744507]
[1773046278926,0.50820689,83.636,83.601,0.49744507]
[1773046280228,0.50820689,83.634,83.603,0.49744507]
[1773046280615,0.50820689,83.634,83.602,11.96143632]
[1773046280824,0.50820689,83.629,83.602,11.96143632]
[1773046281420,0.50820689,83.629,83.6,11.78451468]
[1773046281825,0.50820689,83.629,83.601,0.49744507]
[1773046282336,0.50820689,83.628,83.602,12.45888139]
[1773046282634,0.50820689,83.628,83.603,0.49744507]
[1773046282817,0.50820689,83.628,83.602,11.96143632]
[1773046283013,0.50820689,83.627,83.598,11.96198793]
[1773046283225,0.50820689,83.627,83.595,0.49744507]
[1773046284218,41.85301221,83.626,83.595,12.45988169]
[1773046284424,0.50820689,83.625,83.591,0.49744507]
[1773046285022,0.50820689,83.625,83.59,23.74766477]
[1773046285328,0.50820689,83.625,83.591,0.49744507]
[1773046286639,0.50820689,83.623,83.592,11.96286726]
[1773046287042,0.50820689,83.623,83.591,0.49744507]
[1773046288939,0.50820689,83.621,83.592,12.46031233]
[1773046289341,0.50820689,83.621,83.593,0.49744507]
[1773046290336,0.50820689,83.627,83.601,0.49744507]
[1773046290920,0.50820689,83.627,83.603,0.49744507]
[1773046291130,0.50820689,83.625,83.603,0.49744507]
[1773046291334,0.50820689,83.625,83.602,11.96143632]
[1773046291932,0.50820689,83.625,83.603,0.49744507]
[1773046292942,0.50820689,83.638,83.611,0.49744507]
[1773046293138,0.53695678,83.636,83.609,11.96033933]
[1773046298246,0.53695678,83.634,83.609,0.58807954]
[1773046298625,2.47215037,101.56,83.609,0.58807954]
[1773046298822,12.48919298,83.667,83.631,0.58807954]
[1773046299050,0.53695678,83.666,83.641,0.58807954]
[1773046299344,0.53695678,83.679,83.65,4.39540446]
[1773046299550,0.53695678,83.679,83.651,0.58807954]
[1773046300153,0.53695678,83.679,83.641,0.58807954]
[1773046300334,0.53695678,83.676,83.643,0.58807954]
[1773046301926,0.53695678,83.676,83.651,0.58807954]
[1773046302445,29.87376324,83.686,83.652,0.58807954]
[1773046302446,0.53695678,83.674,83.652,0.58807954]
[1773046304551,4.39540446,83.69,83.654,0.58485746]
[1773046304734,11.94757404,83.699,83.671,0.58485746]
[1773046306660,0.71597726,83.7,83.672,11.95142939]
[1773046306952,0.71597726,83.7,83.672,12.53628685]
[1773046307284,0.71597726,83.7,83.673,0.58485746]
[1773046310637,11.94757404,83.699,83.675,0.58485746]
[1773046310837,0.61597726,83.698,83.675,0.58485746]
[1773046313948,0.61597726,83.698,83.676,11.35328176]
[1773046314255,0.61597726,83.698,83.676,11.93813922]
[1773046315546,0.61597726,83.698,83.677,0.58485746]
[1773046316642,0.61597726,83.698,83.677,12.53552137]
[1773046317546,11.94785954,83.697,83.677,0.58485746]
[1773046318051,12.5638368,83.697,83.677,0.58485746]
[1773046318349,12.5638368,83.697,83.677,4.61e-06]
[1773046318653,0.61597726,83.697,83.677,4.61e-06]
[1773046319254,0.61597726,83.697,83.678,11.95057243]
[1773046319460,34.3524544,83.71,83.678,11.95057243]
[1773046319461,0.1,83.71,83.69,4.38728651]
[1773046319646,0.1,83.71,83.678,11.95057243]
[1773046319647,0.61597726,83.725,83.7,4.38728651]
[1773046320161,0.2,83.73,83.68,4.38728651]
[1773046320162,0.2,83.73,83.71,4.38728651]
[1773046320363,0.61597726,83.752,83.721,0.27644568]
[1773046320656,0.61597726,83.752,83.732,11.94286533]
[1773046320862,0.61597726,83.752,83.732,12.21931101]
[1773046321248,0.61597726,83.759,83.733,0.2799645]
[1773046322144,0.61597726,83.758,83.732,11.94286533]
[1773046324048,0.2,83.76,83.741,0.29027326]
[1773046324246,0.2,83.77,83.733,4.82477569]
[1773046324448,0.65266175,83.787,83.76,4.38728651]
[1773046324761,11.93358797,83.798,83.76,4.38728651]
[1773046324958,0.65266175,83.794,83.76,4.38728651]
[1773046325350,0.65266175,83.794,83.77,4.38728651]
[1773046325660,0.65266175,83.801,83.77,4.38728651]
[1773046325841,29.82741662,83.816,83.739,4.82477569]
[1773046325842,0.65266175,83.809,83.78,4.38728651]
[1773046326161,8.06462234,83.817,83.781,11.93588045]
[1773046326462,1e-08,83.808,83.79,4.38728651]
[1773046326658,1e-08,83.808,83.781,41.77558157]
[1773046327046,0.65266175,83.807,83.776,11.93647044]
[1773046327363,0.65266175,83.799,83.76,4.38728651]
[1773046328747,0.65266175,83.799,83.765,11.93809974]
[1773046328953,0.65266175,83.789,83.751,11.94015593]
[1773046329268,0.65266175,83.789,83.76,4.38728651]
[1773046330475,0.65266175,83.789,83.751,11.94015593]
[1773046330774,0.65266175,83.779,83.745,11.94093489]
[1773046331064,4.38728651,83.78,83.745,11.94093489]
[1773046331065,0.65266175,83.769,83.745,11.94093489]
[1773046331254,0.65266175,83.769,83.739,29.85431321]
[1773046331255,0.65266175,83.769,83.739,11.94178829]
[1773046332270,0.65266175,83.759,83.726,0.02659384]
[1773046332444,0.65266175,83.759,83.732,11.94286533]
[1773046332859,0.65266175,83.759,83.724,0.02659384]
[1773046332860,0.65266175,83.759,83.726,11.94364442]
[1773046333067,64.05343607,83.8,83.72,58.14728651]
[1773046333068,0.65266175,83.749,83.72,53.76]
[1773046333274,0.65266175,83.749,83.731,31.78064157]
[1773046335565,0.65266175,83.759,83.731,31.78064157]
[1773046335765,0.65266175,83.757,83.731,31.78064157]
[1773046336150,0.65266175,83.764,83.74,11.73810307]
[1773046336352,0.65266175,83.749,83.731,31.78064157]
[1773046336759,41.78418652,83.764,83.701,0.30374893]
[1773046336760,0.62160268,83.739,83.701,0.30374893]
[1773046337074,0.62160268,83.729,83.701,0.30374893]
[1773046337462,0.62160268,83.729,83.702,11.94714582]
[1773046337968,0.62160268,83.729,83.703,0.30643792]
[1773046338457,0.62160268,83.729,83.704,11.94686036]
[1773046339296,0.62160268,83.742,83.711,0.31174234]
[1773046339569,0.62160268,83.739,83.704,11.94686036]
[1773046339958,0.62160268,83.729,83.704,11.94686036]
[1773046340580,0.62160268,83.727,83.704,11.94686036]
[1773046341169,0.62160268,83.754,83.721,0.31692688]
[1773046341364,0.62160268,83.754,83.73,11.73810307]
[1773046341552,0.62160268,83.754,83.73,12.05502995]
[1773046341875,11.93681258,83.775,83.75,11.73810307]
[1773046342358,11.93681258,83.775,83.741,0.61423406]
[1773046342359,11.93730527,83.771,83.741,0.61423406]
[1773046342564,11.93730527,83.771,83.715,11.94529056]
[1773046342565,11.73810307,83.75,83.715,11.94529056]
[1773046342965,11.93730527,83.771,83.721,0.61423406]
[1773046342966,11.73810307,83.76,83.721,0.61423406]
[1773046343677,0.62160268,83.759,83.721,0.61423406]
[1773046344881,0.62160268,83.749,83.722,11.94429182]
[1773046345172,0.62160268,83.749,83.723,0.61423406]
[1773046346081,12.56046311,83.761,83.74,11.73810307]
[1773046346271,12.56046311,83.761,83.717,11.94490959]
[1773046346272,0.62160268,83.749,83.717,11.94490959]
[1773046346577,0.62160268,83.757,83.73,12.35233713]
[1773046346876,11.93815379,83.766,83.741,0.61423406]
[1773046347279,11.93604904,83.78,83.75,12.35233713]
[1773046347575,11.93604904,83.78,83.76,11.73810307]
[1773046347882,11.93604904,83.78,83.751,0.61423406]
[1773046348974,11.93656747,83.777,83.752,11.94001337]
[1773046349277,0.62160268,83.79,83.761,0.61423406]
[1773046349579,0.62160268,83.788,83.761,0.61423406]
[1773046349978,0.62160268,83.788,83.719,4.82477569]
[1773046349979,0.62160268,83.779,83.731,0.61423406]
[1773046350178,0.62160268,83.779,83.741,0.61423406]
[1773046350886,0.62160268,83.787,83.753,0.61423406]
[1773046351180,0.62160268,83.787,83.761,0.61423406]
[1773046351974,29.83335926,83.799,83.761,0.61423406]
[1773046351975,11.93417865,83.793,83.77,11.73810307]
[1773046352383,11.93417865,83.793,83.761,0.61423406]
[1773046352681,11.93417865,83.793,83.752,41.7900468]
[1773046352682,0.62160268,83.805,83.771,0.61423406]
[1773046353878,0.668147,83.799,83.772,11.93716277]
[1773046354262,0.668147,83.799,83.767,11.9377387]
[1773046355166,0.668147,83.799,83.762,11.93849429]
[1773046355974,11.73810307,83.8,83.76,12.4057715]
[1773046355975,41.76710661,83.798,83.76,12.4057715]
[1773046356174,0.668147,83.789,83.76,11.73810307]
[1773046356770,0.668147,83.789,83.761,11.93873043]
[1773046357296,0.668147,83.789,83.756,11.93931718]
[1773046357584,0.668147,83.789,83.76,11.73810307]
[1773046358564,0.668147,83.787,83.756,11.93931718]
[1773046359179,0.668147,83.787,83.752,0.66766843]
[1773046359575,0.668147,83.779,83.75,11.73810307]
[1773046359773,0.668147,83.779,83.751,11.94015593]
[1773046360068,0.668147,83.779,83.658,29.85458588]
[1773046360268,0.668147,83.769,83.731,0.66766843]
[1773046360462,11.73810307,83.78,83.741,0.66766843]
[1773046360667,0.668147,83.779,83.741,0.66766843]
[1773046361773,0.668147,83.777,83.742,11.94143918]
[1773046361975,0.668147,83.777,83.743,0.66766843]
[1773046362581,0.668147,83.777,83.74,23.67973528]
[1773046363086,0.668147,83.777,83.74,24.33575304]
[1773046363294,0.668147,83.777,83.75,11.73810307]
[1773046363473,0.668147,83.777,83.749,0.65601776]
[1773046363670,0.668147,83.777,83.741,0.65601776]
[1773046363890,0.64594557,83.767,83.735,11.94229756]
[1773046364389,0.64594557,83.767,83.736,0.65601776]
[1773046364990,0.64594557,83.765,83.737,11.94215221]
[1773046365184,0.64594557,83.765,83.74,12.39412083]
[1773046365391,0.64594557,83.765,83.741,0.65601776]
[1773046365586,0.64594557,83.765,83.734,0.65601776]
[1773046365790,0.64594557,83.759,83.724,0.65601776]
[1773046366371,0.64594557,83.759,83.707,29.86606668]
[1773046366588,0.64594557,83.759,83.72,11.73810307]
[1773046366989,0.64594557,83.757,83.721,11.94443449]
[1773046367189,0.64594557,83.757,83.721,12.60045225]
[1773046367986,0.64594557,83.749,83.721,11.94443449]
[1773046368976,0.64594557,83.747,83.711,11.94580145]
[1773046369175,0.64594557,83.747,83.706,0.65601776]
[1773046369176,0.64594557,83.739,83.706,12.60250922]
[1773046369381,0.64594557,83.747,83.711,0.65601776]
[1773046369594,0.64594557,83.747,83.721,0.65601776]
[1773046369985,0.64594557,83.747,83.73,11.73810307]
[1773046370291,0.64594557,83.754,83.73,11.73810307]
[1773046370493,0.64594557,83.754,83.731,0.65601776]
[1773046371084,0.64594557,83.761,83.733,0.65601776]
[1773046371283,0.64594557,83.769,83.741,0.65601776]
[1773046373283,11.93745556,83.77,83.708,3.69383402]
[1773046373284,0.64594557,83.767,83.734,0.65601776]
[1773046373493,0.64594557,83.767,83.735,11.94243745]
[1773046374400,0.64594557,83.767,83.736,0.65601776]
[1773046374784,11.73564881,83.77,83.731,11.94300796]
[1773046374785,0.64594557,83.765,83.731,11.94300796]
[1773046375006,0.64594557,83.759,83.726,11.94361946]
[1773046375498,0.64594557,83.759,83.731,0.65601776]
[1773046375802,0.64594557,83.765,83.731,0.65601776]
[1773046377489,0.64594557,83.765,83.741,0.65601776]
[1773046379697,0.64594557,83.778,83.743,0.65601776]
[1773046379898,0.64594557,83.778,83.751,0.65601776]
[1773046380810,11.93645033,83.777,83.752,12.59603113]
[1773046381105,0.64594557,83.776,83.752,11.94001337]
[1773046381897,0.64594557,83.776,83.749,0.65601776]
[1773046382098,0.64594557,83.776,83.743,11.94116556]
[1773046382408,0.64594557,83.776,83.743,12.59718332]
[1773046382913,0.64594557,83.774,83.745,11.9410114]
[1773046383107,0.64594557,83.774,83.746,0.70189785]
[1773046383308,0.64594557,83.774,83.745,11.9410114]
[1773046383309,0.67561611,83.769,83.745,11.9410114]
[1773046384293,0.67561611,83.769,83.746,0.70189785]
[1773046384497,11.9367353,83.775,83.746,0.70189785]
[1773046385219,0.67561611,83.775,83.747,11.94072623]
[1773046385520,0.67561611,83.769,83.733,11.9427227]
[1773046385695,0.67561611,83.769,83.733,41.79952945]
[1773046385892,41.77657884,83.779,83.741,0.70189785]
[1773046386107,0.67561611,83.778,83.741,0.70189785]
[1773046388720,11.93645033,83.777,83.742,41.79503713]
[1773046388903,0.67561611,83.776,83.743,0.70189785]
[1773046389104,0.67561611,83.769,83.742,11.94143918]
[1773046389420,0.67561611,83.769,83.743,0.70189785]
[1773046390117,0.67561611,83.776,83.743,0.70189785]
[1773046391894,0.67561611,83.774,83.745,0.70189785]
[1773046393918,0.67561611,83.774,83.747,0.70189785]
[1773046394317,0.67561611,83.778,83.751,0.70189785]
[1773046396706,0.67561611,83.776,83.747,0.70189785]
[1773046397416,0.67561611,83.769,83.74,11.94172438]
[1773046398798,4.3805439,83.77,83.74,11.94172438]
[1773046398799,11.93773278,83.768,83.74,11.94172438]
[1773046399009,0.67561611,83.767,83.74,11.94172438]
[1773046400233,0.67561611,83.765,83.734,0.70189785]
[1773046401430,4.3805439,83.76,83.734,0.70189785]
[1773046401611,0.67561611,83.759,83.734,0.70189785]
[1773046402229,0.67561611,83.759,83.735,11.94243745]
[1773046402725,11.93915805,83.758,83.735,11.94243745]
[1773046402932,0.67561611,83.757,83.729,11.94320978]
[1773046404017,29.84433348,83.768,83.725,11.94386383]
[1773046404018,0.67561611,83.749,83.725,11.94386383]
[1773046404552,0.67561611,83.749,83.73,4.3805439]
[1773046404722,4.3805439,83.78,83.751,0.70189785]
[1773046405028,4.3805439,83.77,83.741,0.70189785]
[1773046405209,4.3805439,83.77,83.731,0.70189785]
[1773046405719,41.77009737,83.792,83.725,41.80352342]
[1773046405720,4.3805439,83.76,83.725,11.94386383]
[1773046406110,11.9390155,83.759,83.726,0.70189785]
[1773046406512,11.93759027,83.769,83.731,0.70189785]
[1773046406730,0.67561611,83.768,83.731,0.70189785]
[1773046407931,0.67561611,83.768,83.741,0.70189785]
[1773046408136,0.67561611,83.768,83.74,4.3805439]
[1773046408137,0.67561611,83.779,83.749,0.70189785]
[1773046408341,0.67561611,83.779,83.743,0.70189785]
[1773046409835,0.67561611,83.778,83.743,0.70189785]
[1773046410236,0.67561611,83.778,83.75,4.3805439]
[1773046410433,0.67561611,83.778,83.751,0.70189785]
[1773046412124,0.67561611,83.778,83.75,4.3805439]
[1773046412125,0.67561611,83.769,83.744,11.94115399]
[1773046412321,0.67561611,83.767,83.741,11.94158178]
[1773046412526,0.67561611,83.767,83.733,0.70189785]
[1773046413337,0.70887589,83.749,83.716,0.69800498]